[Event "44th Chess Olympiad Open 2022"]
[Site "Chennai"]
[Date "2022.07.30"]
[Round "2.54"]
[White "Antonio, Kyell-Jean"]
[Black "Saeheng, Boonsueb"]
[Result "0-1"]
[ECO "B92"]
[WhiteElo "1497"]
[BlackElo "2063"]
[Annotator "TA"]
[PlyCount "100"]
[EventDate "2022.07.29"]
[EventType "team-tourn"]
[EventCountry "IND"]
[SourceTitle "playchess.com"]
[Source "ChessBase"]
[SourceQuality "1"]
[WhiteTeam "ARU"]
[BlackTeam "Thailand"]
[BlackTeamCountry "THA"]
[TimeControl "40/5400+30:1800+30"]

{[%evp 22,100,15,0,8,12,18,0,45,0,0,0,0,0,0,0,13,0,0,0,8,8,7,0,1,-34,-23,-20,-27,-71,-31,-152,-159,-124,-85,-89,-52,-125,-123,-244,-237,-227,-216,-233,-107,-107,-24,-24,0,0,0,0,0,0,0,0,0,0,0,0,0,0,0,-474,-454,-422,-420,-364,-341,-965,-486,-468,-459,-6091,-5736,-5700,-5620,-5226,-5073,-29979,-5089]} 1. e4 {[%emt 0:00:12]} c5 {[%emt 0:00:23]} 2. Nf3 {[%emt 0:00:08]} d6 {[%emt 0:00:27]} 3. d4 {[%emt 0:00:08]} cxd4 {[%emt 0:00:15]} 4. Nxd4 {[%emt 0:00:07]} Nf6 {[%emt 0:00:12]} 5. Nc3 {[%emt 0:00:10]} a6 {[%emt 0:00:14]} 6. Be2 {[%emt 0:00:05]} e5 {[%emt 0:00:27]} 7. Nb3 {[%emt 0:00:09]} Be7 {[%emt 0:00:21]} 8. Be3 {[%emt 0:01:07]} Be6 {[%emt 0:01:10]} 9. O-O {[%emt 0:00:03]} Nbd7 {[%emt 0:01:21]} 10. a4 {[%emt 0:02:34]} O-O {[%emt 0:07:04]} 11. Qd2 {[%emt 0:04:22]} Rc8 {[%emt 0:01:45]} 12. a5 {[%emt 0:00:17]} Rc6 {[%emt 0:07:28] B92: Sicilian Najdorf: 6 Be2.} 13. Rfc1 {[%emt 0:12:19]} Re8 {[%emt 0:10:19]} 14. f3 {[%emt 0:10:22] [#]} Bc4 $146 {[%emt 0:07:00] The position is equal.} ({Predecessor:} 14... Rc8 15. Ra4 h6 16. g4 Nf8 17. Rd1 Ng6 18. Raa1 Rc6 19. Nd5 Bxd5 20. exd5 Rc8 {0-1 (28) Schroers,U (2000)-Muster,W (2264) Remote email 2013}) 15. Nd5 {[%emt 0:06:19]} Nxd5 {[%emt 0:00:54]} 16. exd5 {[%emt 0:01:03]} Rc8 {[%emt 0:01:06]} 17. Bxc4 {[%emt 0:00:51]} Rxc4 {[%emt 0:00:11]} 18. Qd3 {[%emt 0:00:36]} Rc8 {[%emt 0:10:27]} 19. c4 {[%emt 0:06:19]} Bg5 {[%emt 0:03:16]} 20. Nd2 {[%emt 0:02:56]} f5 {[%emt 0:03:25] Against Ne4} 21. b4 {[%emt 0:05:08]} e4 {[%emt 0:11:21]} 22. fxe4 {[%emt 0:13:16]} (22. Bxg5 {seems wilder.} Qxg5 23. fxe4 fxe4 24. Nxe4 Qg6 25. Nf2) 22... Ne5 {[%emt 0:08:46]} 23. Bxg5 {[%emt 0:14:46]} Nxd3 {[%emt 0:07:17]} 24. Bxd8 {[%emt 0:00:12][%cal Od8b6] Bb6! is the strong threat.} Nxc1 {[%emt 0:00:06]} 25. Rxc1 {[%emt 0:05:09] aiming for Bb6.} Rcxd8 {[%emt 0:00:10]} 26. exf5 $11 {[%emt 0:00:39][%mdl 4096] Endgame KRR-KRN} (26. Kf2 $15) 26... Re2 $17 {[%emt 0:00:24]} 27. Rd1 {[%emt 0:02:37]} Kf7 {[%emt 0:02:54]} 28. Kf1 {[%emt 0:00:10]} Re5 {[%emt 0:04:15]} 29. g4 {[%emt 0:03:37]} ({Better is} 29. Nf3 $1 $15 Rxf5 30. Ke2) 29... Kf6 $1 {[%emt 0:03:11]} 30. Re1 {[%emt 0:04:18]} (30. Kg2 $17 {keeps fighting.}) 30... Rxe1+ $19 {[%emt 0:02:26]} 31. Kxe1 {[%emt 0:00:02] KR-KN} Ke5 {[%emt 0:00:10]} 32. Kf2 {[%emt 0:02:24]} h5 {[%emt 0:03:17]} (32... Kd4 $19 {has better winning chances. Hoping for ...Kd3.} 33. Ke2 Kc3) 33. Kf3 {[%emt 0:01:31]} Rf8 {[%emt 0:01:05]} ({Black should try} 33... Rh8 $17 34. g5 Kxf5) 34. h3 $11 {[%emt 0:00:42]} g6 {[%emt 0:00:41]} 35. Ke3 $1 {[%emt 0:00:15]} hxg4 {[%emt 0:00:49]} 36. hxg4 {[%emt 0:00:04]} gxf5 {[%emt 0:00:07]} 37. Nf3+ $1 {[%emt 0:00:09]} Kf6 {[%emt 0:00:20]} 38. g5+ {[%emt 0:00:56]} Kg6 {[%emt 0:00:35] Threatens to win with ...Re8+.} 39. Kf4 {[%emt 0:00:01] Black must now prevent c5.} Rc8 {[%emt 0:01:05] Against c5} 40. c5 {[%emt 0:03:50]} dxc5 {[%emt 0:00:19][%cal Bd6c5,Bc5b4,Bb4b3][%mdl 32]} 41. Ne5+ {[%emt 0:11:23]} Kg7 {[%emt 0:03:01]} 42. Kxf5 $2 {[%emt 0:03:11][%mdl 8192]} (42. bxc5 $11 {and White stays safe.} Rxc5 43. d6) 42... cxb4 $19 {[%emt 0:00:33]} 43. d6 {[%emt 0:00:27]} b3 $1 {[%emt 0:01:09] ( -> ...b2)} 44. Nd3 {[%emt 0:00:21] [#]} Rc3 $1 {[%emt 0:02:15]} 45. Ke4 {[%emt 0:00:01]} (45. Nb2 Kf7 46. g6+ Ke8 47. g7) 45... Kf7 {[%emt 0:00:46]} 46. g6+ {[%emt 0:02:33]} Ke6 {[%emt 0:00:13]} 47. g7 {[%emt 0:00:41]} (47. d7 $142 Rc4+ 48. Kf3) 47... Rc4+ {[%emt 0:01:16]} 48. Kf3 {[%emt 0:00:01]} Rc8 {[%emt 0:00:21]} 49. Nc5+ {[%emt 0:01:22]} Kxd6 {[%emt 0:00:12]} 50. Ne4+ {[%emt 0:01:41]} Ke5 {[%emt 0:00:21] Weighted Error Value: White=0.72/Black=0.23 (precise)} (50... Ke7 $142 51. Nd2 b2 52. g8=B Rxg8 53. Ke3 Rd8 54. Nb1 Rd1 55. Na3 Ra1 56. Kd3 Rxa3+ 57. Kc2 {[#]} Rb3 $3 {[%mdl 512]} 58. Kxb3 b1=Q+ 59. Kc4 Qd1 60. Kc3 Kd6 61. Kb2 Qd2+ 62. Kb1 Kc5 63. Ka1 Kd4 64. Kb1 Kc3 65. Ka1 Qb2#) 0-1

[Event "44th Chess Olympiad Open 2022"]
[Site "Chennai"]
[Date "2022.07.30"]
[Round "2.55"]
[White "Martyr, Reginald"]
[Black "Tagelsir, Abubaker"]
[Result "1/2-1/2"]
[ECO "A15"]
[WhiteElo "2194"]
[BlackElo "2232"]
[Annotator "TA"]
[PlyCount "101"]
[EventDate "2022.07.29"]
[EventType "team-tourn"]
[EventCountry "IND"]
[SourceTitle "playchess.com"]
[Source "ChessBase"]
[SourceQuality "1"]
[WhiteTeam "LCA"]
[BlackTeam "Sudan"]
[BlackTeamCountry "SUD"]
[TimeControl "40/5400+30:1800+30"]

{[%evp 10,101,35,22,35,18,38,21,37,-27,-37,-39,-38,-52,-46,-85,-76,-88,-58,-76,-26,-18,-22,-26,0,-92,-91,-126,-127,-130,-139,-169,-159,-145,-151,-214,-213,-194,-200,-188,-155,-281,-289,-290,-273,-378,-352,-303,-252,-239,-149,-135,-113,-120,-48,-45,-52,-54,-28,-46,-45,-44,0,0,0,0,0,0,0,0,41,37,153,154,161,156,477,250,508,242,234,219,444,400,374,366,528,506,717,454,429,360,226,0]} 1. Nf3 {[%emt 0:00:08]} Nf6 {[%emt 0:00:08]} 2. c4 {[%emt 0:00:13]} g6 {[%emt 0:00:07]} 3. b3 {[%emt 0:00:13]} Bg7 {[%emt 0:00:12]} 4. Bb2 {[%emt 0:00:03]} O-O {[%emt 0:00:07]} 5. g3 {[%emt 0:00:19]} d5 {[%emt 0:04:36]} 6. cxd5 {[%emt 0:00:54]} Qxd5 {[%emt 0:01:51][%cal Oe7e5] A15: English Opening: 1...Nf6.} 7. Bg2 {[%emt 0:00:36]} (7. Nc3 Qh5 $11) 7... c5 {[%emt 0:02:33]} 8. Nc3 {[%emt 0:11:26]} Qf5 {[%emt 0:02:24] [#] The position is equal.} 9. h3 $146 {[%emt 0:10:10]} (9. d3 $14) ({Predecessor:} 9. Na4 Nc6 10. O-O Qh5 11. Rc1 b6 12. d4 Rd8 13. Qe1 Bh3 14. Nxc5 Ng4 15. e3 {1-0 (36) Adhiban,B (2672)-Shevchenko,K (2633) Chess.com INT 2021}) 9... Nc6 $11 {[%emt 0:01:00]} 10. Rc1 {[%emt 0:06:31]} Rd8 {[%emt 0:04:00]} 11. Na4 {[%emt 0:14:48]} b6 {[%emt 0:14:01]} 12. O-O {[%emt 0:17:25][%cal Ob3b4]} Bb7 {[%emt 0:00:40]} 13. d3 {[%emt 0:00:38]} Rac8 {[%emt 0:03:56]} 14. a3 {[%emt 0:01:11]} Rc7 {[%emt 0:08:21]} (14... Qd7 $17) 15. b4 $1 {[%emt 0:05:05]} cxb4 {[%emt 0:09:41]} 16. axb4 {[%emt 0:00:20][%cal Ob4b5]} Rcd7 {[%emt 0:10:36]} 17. Rb1 {[%emt 0:08:26]} (17. Rc4 $11) 17... e5 $1 $17 {[%emt 0:01:52]} 18. g4 {[%emt 0:13:14] [#]} Qe6 {[%emt 0:00:54]} 19. Ng5 {[%emt 0:01:46]} Qe7 {[%emt 0:00:29]} 20. b5 {[%emt 0:01:01]} Nd4 {[%emt 0:00:54] Strongly threatening ...Bxg2.} 21. Bxb7 {[%emt 0:01:04]} Rxb7 {[%emt 0:00:14]} 22. Bc1 {[%emt 0:04:26]} (22. e3 $17 {is a better defense.} Nxb5 23. Qb3) 22... h6 $19 {[%emt 0:03:25]} 23. e3 {[%emt 0:00:00]} hxg5 {[%emt 0:01:05]} 24. exd4 {[%emt 0:00:00]} Rxd4 {[%emt 0:00:21] Threatens to win with ...e4.} 25. Bb2 {[%emt 0:00:00]} (25. Be3 $17) 25... Rd8 {[%emt 0:00:17]} 26. Re1 {[%emt 0:00:16]} Nd5 {[%emt 0:01:07]} 27. Qf3 {[%emt 0:00:49]} Rbd7 {[%emt 0:01:58]} 28. d4 {[%emt 0:00:15]} Qb4 {[%emt 0:00:31]} 29. Nc3 {[%emt 0:01:33]} Nxc3 {[%emt 0:08:37]} (29... Qxd4 $2 30. Ne4 Qc4 31. Nxg5) 30. Bxc3 {[%emt 0:00:11]} Qc4 {[%emt 0:00:07]} 31. Rb4 {[%emt 0:00:54]} Qd5 {[%emt 0:05:40]} ({Better is} 31... Qc7 $17 {And now ...Rd5 would win.} 32. Bd2 f6) 32. Qxd5 $15 {[%emt 0:00:13][%mdl 64] Remove Defender} Rxd5 {[%emt 0:00:06]} 33. dxe5 {[%emt 0:00:09]} Rd3 {[%emt 0:00:13]} 34. Re3 {[%emt 0:02:17]} Rxe3 {[%emt 0:00:07]} 35. fxe3 {[%emt 0:00:01][%mdl 4096] Endgame KRB-KRB} Rd5 {[%emt 0:00:11]} 36. Rd4 {[%emt 0:01:13]} Rxb5 {[%emt 0:01:38]} 37. Rd8+ {[%emt 0:00:05]} Bf8 {[%emt 0:00:18]} 38. Bd4 {[%emt 0:00:24]} Rb1+ {[%emt 0:01:55]} 39. Kg2 {[%emt 0:00:13]} Rc1 {[%emt 0:00:10]} 40. Kf3 {[%emt 0:01:01] Bb2 is the strong threat.} b5 {[%emt 0:03:29]} ({Black should play} 40... Rb1 $14) 41. Bxa7 $16 {[%emt 0:30:01]} Kg7 {[%emt 0:11:53] [#]} 42. Bd4 {[%emt 0:00:00] Hoping for e6+.} Be7 $2 {[%emt 0:01:06]} (42... Kg8 $16 {is tougher.} 43. Ke4 b4) 43. Rb8 {[%emt 0:00:00]} (43. e6+ $142 f6 44. Re8) 43... b4 $2 {[%emt 0:00:15]} (43... f6 44. Rb7 (44. Rxb5 fxe5 45. Bxe5+ Kf7 $16) (44. exf6+ Bxf6 45. Rb7+ Kh6 $16) 44... Kf8 45. exf6 Bxf6 46. Bxf6 (46. Rxb5 Kf7 $16) 46... Rf1+ 47. Ke2 Rxf6 48. Rxb5 Rf7 49. Rxg5 Rh7 50. Rxg6 (50. e4 Kg7 $16) 50... Kf7) 44. Ke4 {[%emt 0:00:00]} (44. e6+ $142 f6 45. Re8) 44... Rc6 $18 {[%emt 0:03:31]} 45. Kd5 {[%emt 0:00:00]} Ra6 {[%emt 0:00:09]} (45... Rc7 46. Bb6 Rc2) 46. Re8 {[%emt 0:00:00]} Re6 {[%emt 0:00:52]} 47. Ra8 {[%emt 0:00:00]} Bf8 {[%emt 0:03:10]} (47... b3 $142 48. Rb8 Ra6) 48. Rb8 {[%emt 0:02:46]} Ra6 {[%emt 0:00:29]} 49. e4 {[%emt 0:00:29]} Re6 {[%emt 0:02:48]} 50. Be3 {[%emt 0:01:11]} Be7 {[%emt 0:00:16]} 51. Bd4 $2 {[%emt 0:01:17] White used his chance.  Weighted Error Value: White=0.45/Black=0.37} (51. Ba7 $18) 1/2-1/2

[Event "44th Chess Olympiad Open 2022"]
[Site "Chennai"]
[Date "2022.07.30"]
[Round "2.55"]
[White "Hamid Mohammed"]
[Black "Sixtus Gabriel"]
[Result "1-0"]
[ECO "B07"]
[WhiteElo "2116"]
[BlackElo "1787"]
[Annotator "TA"]
[PlyCount "91"]
[EventDate "2022.07.29"]
[EventType "team-tourn"]
[EventCountry "IND"]
[SourceTitle "playchess.com"]
[Source "ChessBase"]
[SourceQuality "1"]
[WhiteTeam "Sudan"]
[BlackTeam "LCA"]
[WhiteTeamCountry "SUD"]
[TimeControl "40/5400+30:1800+30"]

{[%evp 11,91,11,13,16,17,4,16,18,27,27,37,14,60,49,59,48,43,52,76,0,79,70,60,0,221,119,130,93,98,129,151,127,307,309,306,304,377,398,446,435,424,431,423,425,425,420,439,453,420,418,528,225,656,666,1095,518,506,500,525,517,875,839,1120,1093,1980,1675,1432,1394,29990,29991,29991,29992,29992,29992,29992,29993,29993,29994,29994,29995,29995,29996]} 1. e4 {[%emt 0:00:02]} g6 {[%emt 0:00:17]} 2. d4 {[%emt 0:00:06]} Bg7 {[%emt 0:00:06]} 3. Nc3 {[%emt 0:00:18]} d6 {[%emt 0:00:13]} 4. Be2 {[%emt 0:00:30]} Nf6 {[%emt 0:00:38]} 5. h4 {[%emt 0:02:47]} h5 {[%emt 0:01:58]} 6. Be3 {[%emt 0:01:49]} c6 {[%emt 0:01:21]} 7. Qd2 {[%emt 0:03:00] B07: Pirc Defence: Miscellaneous Systems.} b5 {[%emt 0:02:22]} 8. f3 {[%emt 0:01:19]} Nbd7 {[%emt 0:02:02]} 9. Nh3 {[%emt 0:03:31] The position is equal.} Nb6 {[%emt 0:01:22]} 10. Ng5 {[%emt 0:03:14]} a5 {[%emt 0:02:52] [#]} 11. Nd1 $146 {[%emt 0:12:05]} ({Predecessor:} 11. O-O O-O 12. Qe1 Nc4 13. Bxc4 bxc4 14. Qg3 Qb6 15. Rab1 Nh7 16. Rfd1 a4 17. a3 Nxg5 18. Qxg5 {1-0 (37) Vorobyova,A (1984)-Sergeev,I (1951) Abaza 2011}) 11... b4 {[%emt 0:07:50]} (11... Nc4 $11 12. Bxc4 bxc4) 12. Nf2 {[%emt 0:00:33]} Ba6 {[%emt 0:00:38]} 13. Bxa6 {[%emt 0:02:30]} Rxa6 {[%emt 0:00:33]} 14. Qe2 {[%emt 0:00:04] Inhibits Nc4.} Qc8 {[%emt 0:02:42]} 15. g4 {[%emt 0:13:37]} ({White should play} 15. a3 $16) 15... Na4 {[%emt 0:03:26]} (15... Ra8 $11 {remains equal.}) 16. O-O-O $1 $16 {[%emt 0:12:55]} Qb7 {[%emt 0:14:10]} 17. Rdg1 {[%emt 0:09:00]} (17. Nd3 $14) 17... Rb6 $2 {[%emt 0:07:21]} (17... c5 $11 {and Black has nothing to worry.}) 18. Qc4 {[%emt 0:00:55]} (18. Qd3 $1 $18 {[%cal Rd3b3]}) 18... O-O {[%emt 0:11:05][%cal Oc6c5]} 19. Qb3 {[%emt 0:03:12]} Nc3 {[%emt 0:05:45]} 20. bxc3 {[%emt 0:01:21]} a4 {[%emt 0:02:08]} 21. Qc4 {[%emt 0:03:25]} d5 $2 {[%emt 0:01:53] A mistake that costs the game.} (21... hxg4 $16 {might work better.} 22. Nxg4 b3 23. axb3 (23. Qxa4 b2+ 24. Kd2 Nxg4 $19) 23... axb3) 22. Qd3 $18 {[%emt 0:00:17]} bxc3 {[%emt 0:01:05][%csl Gb7][%cal Rb6b1] [#]} 23. Kd1 $1 {[%emt 0:02:12]} ({Don't do} 23. Qxc3 $6 dxe4 24. fxe4 c5 $16) 23... Rb1+ {[%emt 0:03:44]} 24. Ke2 {[%emt 0:01:37]} Rxg1 {[%emt 0:00:54]} 25. Rxg1 {[%emt 0:00:08] e5 is the strong threat.} dxe4 {[%emt 0:00:37]} 26. fxe4 {[%emt 0:02:00]} Qb2 {[%emt 0:01:25]} 27. gxh5 {[%emt 0:01:53]} Nxh5 {[%emt 0:01:06]} 28. Nd1 {[%emt 0:02:05][%csl LRb2,LRc3]} Qxa2 {[%emt 0:02:09]} 29. Nxc3 {[%emt 0:03:24]} Qa3 {[%emt 0:00:37]} 30. e5 {[%emt 0:05:10]} c5 {[%emt 0:03:18]} 31. Nce4 {[%emt 0:00:19]} (31. e6 $142 f5 32. Nd5 Qxd3+ 33. Kxd3) 31... Qb4 $2 {[%emt 0:01:21]} (31... Qxd3+ 32. Kxd3 (32. cxd3 cxd4 33. Bxd4 Nf4+ 34. Ke3 Rd8 $18) 32... cxd4) 32. Nxc5 {[%emt 0:01:35]} Rd8 {[%emt 0:01:00] [#]} 33. c3 {[%emt 0:01:36]} (33. Nxf7 $142 $1 Rxd4 34. Nh6+ (34. Bxd4 Nf4+ 35. Ke3 Nxd3 $16) 34... Kh8 35. Qxg6 Qc4+ 36. Ke1 Qb4+ 37. Ke2 Qc4+ 38. Ke1 Qb4+ 39. c3 Qxc3+ 40. Kf2 Qb2+ 41. Kf3 Rf4+ 42. Bxf4 Qe2+ 43. Kxe2 Nxf4+ 44. Ke3 Nxg6 45. Rxg6) 33... Qb2+ {[%emt 0:00:49]} 34. Qd2 {[%emt 0:02:21]} Qb5+ {[%emt 0:00:37]} 35. Kf2 {[%emt 0:00:08]} Bxe5 {[%emt 0:00:38]} (35... Qc4 $142 36. Nf3 Ra8) 36. Qa2 {[%emt 0:00:09]} e6 {[%emt 0:04:21]} 37. dxe5 {[%emt 0:00:49][%cal Og5f7] Threatens to win with Nxf7!} Ng7 {[%emt 0:02:13]} 38. Rb1 {[%emt 0:01:27]} Qc6 {[%emt 0:00:42]} 39. Qxa4 {[%emt 0:00:48]} Qd5 {[%emt 0:00:24]} 40. Qa7 {[%emt 0:02:41] White mates.} Qxe5 {[%emt 0:01:40]} 41. Qxf7+ {[%emt 0:30:07]} Kh8 {[%emt 0:30:17]} 42. Bd4 {[%emt 0:00:00]} Qh2+ {[%emt 0:00:00]} 43. Kf3 {[%emt 0:00:00][%csl Gf7][%cal Rd4g7]} e5 {[%emt 0:00:00]} 44. Nce6 {[%emt 0:00:00][%csl Ge6][%cal Rf7g7]} e4+ {[%emt 0:00:00]} 45. Nxe4 {[%emt 0:00:00][%csl Gd4,Ge6][%cal Rf7g7]} Qh3+ {[%emt 0:00:00]} 46. Ng3 {[%emt 0:00:00] Weighted Error Value: White=0.43/Black=0.57} 1-0

[Event "44th Chess Olympiad Open 2022"]
[Site "Chennai"]
[Date "2022.07.30"]
[Round "2.55"]
[White "Mathurin, Nathaniel"]
[Black "Abdelhakiem Abdellatief Nogdal"]
[Result "1-0"]
[ECO "A42"]
[WhiteElo "1722"]
[BlackElo "1960"]
[Annotator "TA"]
[PlyCount "111"]
[EventDate "2022.07.29"]
[EventType "team-tourn"]
[EventCountry "IND"]
[SourceTitle "playchess.com"]
[Source "ChessBase"]
[SourceQuality "1"]
[WhiteTeam "LCA"]
[BlackTeam "Sudan"]
[BlackTeamCountry "SUD"]
[TimeControl "40/5400+30:1800+30"]

{[%evp 11,111,42,61,64,79,53,54,60,95,85,89,66,68,31,116,84,93,47,141,107,97,97,166,93,170,169,171,173,191,179,177,193,218,216,229,191,287,282,289,291,287,295,321,309,295,284,382,375,431,325,325,335,325,304,302,308,314,313,508,314,589,612,582,583,672,554,560,529,834,852,852,819,961,773,1081,712,696,705,1075,1026,845,831,29956,29961,29959,29963,5155,5077,29974,29975,29981,29982,29985,29986,29990,29988,29988,29989,29996,29993,29996,29997]} 1. d4 {[%emt 0:00:03]} g6 {[%emt 0:00:31]} 2. c4 {[%emt 0:00:35]} Bg7 {[%emt 0:00:07]} 3. Nc3 {[%emt 0:00:02]} d6 {[%emt 0:00:18]} 4. e4 {[%emt 0:01:14]} e5 {[%emt 0:00:25]} 5. Nge2 {[%emt 0:00:11]} Nc6 {[%emt 0:00:33]} 6. Be3 {[%emt 0:00:28]} Nge7 {[%emt 0:02:21]} 7. d5 {[%emt 0:01:33] A42: Modern Defence: Averbakh Variation.} Nb8 {[%emt 0:00:49]} 8. Qd2 {[%emt 0:03:35]} f5 {[%emt 0:01:08]} 9. f3 {[%emt 0:00:39] White is slightly better.} f4 {[%emt 0:00:53]} 10. Bf2 {[%emt 0:03:22] [#]} O-O $146 {[%emt 0:00:20]} ({Predecessor:} 10... g5 11. h3 b6 12. Nc1 a5 13. b3 Nd7 14. a3 h5 15. Be2 Nf6 16. Nd3 Ng6 {1-0 (36) Horvath,G (2451)-Ravasz,L (2118) Hungary 2005}) 11. c5 {[%emt 0:03:27]} Na6 {[%emt 0:00:49]} 12. Na4 {[%emt 0:01:25]} g5 {[%emt 0:07:06]} (12... b5 $1 $14) 13. b4 {[%emt 0:02:50]} Ng6 {[%emt 0:00:51]} 14. Nc1 {[%emt 0:05:37]} (14. a3 $16) 14... Qe7 {[%emt 0:00:38]} (14... g4 $14) 15. Nb3 {[%emt 0:00:56][%cal Bc1b3,Bb3a5,Ba5c6,Bc6a7,Ba7b5][%mdl 32]} Nb8 {[%emt 0:02:18]} 16. Nc3 {[%emt 0:08:09]} Nd7 {[%emt 0:01:42]} (16... a6 $16) 17. c6 {[%emt 0:01:35]} ({Better is} 17. Nb5 $1 $18 {[%cal Rb5c7]}) 17... Nf6 {[%emt 0:00:16]} (17... bxc6 $16 18. Na5 Qf7) 18. cxb7 $1 $18 {[%emt 0:00:06]} Bxb7 {[%emt 0:00:17] [#]} 19. Na5 $1 $36 {[%emt 0:01:00][%mdl 2048] White is really pushing.} Bc8 {[%emt 0:03:11]} 20. Nc6 {[%emt 0:00:46][%csl LRa7,LRe7]} Qf7 {[%emt 0:00:28]} 21. Nxa7 {[%emt 0:00:16]} (21. Bxa7 g4 $16) 21... g4 {[%emt 0:03:33]} 22. Ncb5 {[%emt 0:01:02]} Ba6 {[%emt 0:02:03]} 23. Rc1 {[%emt 0:00:20]} Bxb5 {[%emt 0:01:20]} (23... Ne8 $142 24. Qc2 (24. fxg4 Bf6 $18) 24... Qd7) 24. Nxb5 {[%emt 0:00:04]} Rfc8 {[%emt 0:02:30]} 25. a4 {[%emt 0:00:02][%cal Ba2a4,Ba4a5,Ba5b6][%mdl 32]} h5 {[%emt 0:03:09]} 26. a5 {[%emt 0:01:07]} Ne8 {[%emt 0:01:29]} 27. Na7 {[%emt 0:01:16]} Rd8 {[%emt 0:04:30]} 28. b5 {[%emt 0:00:21]} Bf6 {[%emt 0:01:54]} 29. Nc6 {[%emt 0:01:23]} Rdc8 {[%emt 0:02:18]} 30. b6 {[%emt 0:02:10]} cxb6 {[%emt 0:00:15]} 31. axb6 {[%emt 0:00:02]} Qb7 {[%emt 0:00:19]} 32. Bc4 {[%emt 0:01:00]} Nh4 {[%emt 0:04:38]} 33. O-O {[%emt 0:04:50]} gxf3 {[%emt 0:00:46]} 34. g3 {[%emt 0:00:01] Kh1 is the strong threat.} Ng2 $2 {[%emt 0:01:39]} (34... Qd7 35. Be1 (35. gxf4 Qg7+ 36. Bg3 exf4 $17) 35... Ng6 36. Rxf3 Bd8) 35. Na5 {[%emt 0:00:15]} Rxa5 {[%emt 0:00:53]} (35... Qg7 36. b7 fxg3) 36. Qxa5 {[%emt 0:00:02] Black must now prevent Ba6.} Ra8 {[%emt 0:00:12] Prevents Ba6.} 37. Qb5 {[%emt 0:02:45]} Qf7 {[%emt 0:07:26]} 38. Qc6 {[%emt 0:00:58]} Rb8 {[%emt 0:01:55]} 39. Ba6 {[%emt 0:00:00][%cal Bc4a6,Ba6c8,Bc8e6][%mdl 32]} Bd8 {[%emt 0:00:52]} 40. Bc8 {[%emt 0:00:03]} Kh8 {[%emt 0:07:33]} 41. b7 {[%emt 0:30:44] aiming for Ba7.} Ne3 {[%emt 0:30:41]} 42. Be6 {[%emt 0:00:36]} Qf8 {[%emt 0:02:28]} 43. gxf4 {[%emt 0:03:45]} Nxf1 {[%emt 0:01:06]} 44. Kxf1 {[%emt 0:02:41]} Bc7 {[%emt 0:01:38]} 45. Ba7 {[%emt 0:02:16] A strong pair of Bishops.} Rd8 {[%emt 0:00:58]} 46. Bb6 {[%emt 0:02:45]} Bxb6 {[%emt 0:00:55]} 47. Qxb6 {[%emt 0:00:01]} Qxf4 {[%emt 0:00:38]} 48. Qxd8 {[%emt 0:06:34] Active counter play!} Qxc1+ {[%emt 0:00:20] KQB-KQN} 49. Kf2 {[%emt 0:00:00]} Qd2+ {[%emt 0:01:14] [#]} 50. Kg3 $1 {[%emt 0:04:28] White mates.} ({Not} 50. Kxf3 Qd3+ 51. Kf2 Qd2+ 52. Kg3 Qe3+ 53. Kg2 (53. Kh4 Qf4+ 54. Kh3 Qe3+ 55. Kg2 Qe2+ 56. Kh3 Qe3+ 57. Kh4 Qf4+ 58. Kxh5 Qh6+ 59. Kg4 Qf4+ 60. Kh5 Qh6+ 61. Kg4 Qf4+ 62. Kh5 $11) 53... Qe2+ 54. Kh3 Qe3+ 55. Kh4 Qf4+ 56. Kxh5 Qh6+ 57. Kg4 Qf4+ 58. Kh5 Qh6+ 59. Kg4 Qf4+ 60. Kh5 $11) 50... Qg2+ {[%emt 0:06:27]} 51. Kh4 {[%emt 0:00:04]} Qxh2+ {[%emt 0:00:22]} 52. Kg5 {[%emt 0:06:43]} Qf4+ {[%emt 0:08:03]} 53. Kxh5 {[%emt 0:00:03]} Qh2+ {[%emt 0:02:22]} 54. Qh4 {[%emt 0:00:02]} Qg1 {[%emt 0:02:23]} 55. Bg4 {[%emt 0:00:07]} Kg7 {[%emt 0:01:35]} 56. Qe7+ {[%emt 0:03:13] Weighted Error Value: White=0.20 (precise) /Black=0.51} 1-0